fUSD/lending_fUSD_20260121
["ID","MTS","AMOUNT","RATE_DAILY","PERIOD"]
[402940315,1769000888019,-441.06102771,0.00042995,120]
[402940316,1769000888090,-638.01900718,0.00042995,120]
[402940317,1769000888162,-425.52540409,0.00042995,120]
[402940318,1769000888238,-500.0,0.00042995,120]
[402940319,1769000888312,-507.8534142,0.00042995,120]
[402940320,1769000888384,-500.0,0.00042995,60]
[402940321,1769000888459,-500.0,0.00042995,60]
[402940322,1769000888532,-500.0,0.00042995,60]
[402940323,1769000888608,-500.0,0.00042995,60]
[402940324,1769000888684,-500.0,0.00042995,60]
[402940325,1769000888756,-500.0,0.00042995,60]
[402940326,1769000888828,-505.18064196,0.00042995,120]
[402940327,1769000888902,-500.0,0.00042995,60]
[402940328,1769000888974,-500.0,0.00042995,120]
[402940329,1769000889053,-500.0,0.00042995,120]
[402940330,1769000889131,-173.42,0.00042995,120]
[402940331,1769000889209,-500.0,0.00042995,120]
[402940332,1769000889282,-500.0,0.00042995,120]
[402940333,1769000889354,-414.92956482,0.00042995,120]
[402940334,1769000889426,-188.27,0.00042995,120]
[402940335,1769000889496,-500.0,0.00042995,120]
[402940336,1769000889566,-504.27719685,0.00042995,120]
[402940337,1769000889635,-531.93660662,0.00042995,120]
[402940338,1769000889704,-500.0,0.00042995,120]
[402940339,1769000889775,-514.27864934,0.00042995,120]
[402940340,1769000889844,-503.27619163,0.00042995,120]
[402940341,1769000889914,-503.12059096,0.00042995,120]
[402940342,1769000889985,-504.43225653,0.00042995,120]
[402940343,1769000890059,-500.0,0.00042995,120]
[402940344,1769000890129,-500.0,0.00042995,120]
[402940345,1769000890204,-500.0,0.00042995,120]
[402940346,1769000890276,-500.0,0.00042995,120]
[402940347,1769000890349,-622.56460028,0.00042995,120]
[402940348,1769000890420,-500.0,0.00042995,120]
[402940349,1769000890493,-500.0,0.00042995,120]
[402940350,1769000890563,-500.0,0.00042995,120]
[402940351,1769000890634,-500.0,0.00042995,120]
[402940352,1769000890703,-500.0,0.00042995,120]
[402940353,1769000890772,-500.0,0.00042995,120]
[402940354,1769000890840,-424.78,0.00042995,120]
[402940355,1769000890910,-260.54,0.00042995,120]
[402940356,1769000890980,-500.0,0.00042995,120]
[402940357,1769000891051,-503.15850906,0.00042995,120]
[402940358,1769000891124,-509.65831836,0.00042995,120]
[402940359,1769000891197,-504.40688852,0.00042995,120]
[402940360,1769000891267,-500.0,0.00042995,30]
[402940361,1769000891335,-500.0,0.00042995,120]
[402940362,1769000891405,-504.32438532,0.00042995,120]
[402940363,1769000891475,-512.21498271,0.00042995,120]
[402940364,1769000891546,-509.06103138,0.00042995,120]
[402940365,1769000891614,-1281.14,0.00042995,120]
[402940366,1769000891682,-1281.14,0.00042995,120]
[402940367,1769000891749,-1281.14,0.00042995,120]
[402940368,1769000891815,-1281.14,0.00042995,120]
[402940369,1769000891881,-1281.14,0.00042995,120]
[402940370,1769000891946,-590.32,0.00042995,120]
[402940371,1769000892015,-1281.14,0.00042995,120]
[402940372,1769000892083,-1281.14,0.00042995,120]
[402940373,1769000892152,-1281.14,0.00042995,120]
[402940374,1769000892225,-1281.14,0.00042995,120]
[402940375,1769000892299,-1281.14,0.00042995,120]
[402940376,1769000892371,-1281.14,0.00042995,120]
[402940377,1769000892440,-536.14182895,0.00042995,120]
[402940378,1769000892511,-1281.14,0.00042995,120]
[402940379,1769000892579,-1281.14,0.00042995,120]
[402940380,1769000892650,-1281.14,0.00042995,120]
[402940381,1769000892719,-1281.14,0.00042995,120]
[402940382,1769000892787,-1281.14,0.00042995,120]
[402940383,1769000892854,-1281.14,0.00042995,120]
[402940384,1769000892924,-1281.14,0.00042995,120]
[402940385,1769000892994,-1281.14,0.00042995,120]
[402940386,1769000893063,-1281.14,0.00042995,120]
[402940387,1769000893133,-1281.14,0.00042995,120]
[402940388,1769000893203,-1281.14,0.00042995,120]
[402940389,1769000893274,-1281.14,0.00042995,120]
[402940390,1769000893344,-500.0,0.00042995,120]
[402940391,1769000893415,-500.0,0.00042995,120]
[402940392,1769000893488,-1281.1974786,0.00042995,120]
[402940393,1769000893560,-500.0,0.00042995,120]
[402940394,1769000893629,-366.34454867,0.00042995,120]
[402940395,1769000893699,-532.19311257,0.00042995,120]
[402940396,1769000893768,-500.0,0.00042995,120]
[402940397,1769000893841,-500.0,0.00042995,120]
[402940398,1769000894101,-500.0,0.00042995,120]
[402940399,1769000894176,-500.0,0.00042995,120]
[402940400,1769000894252,-265.19,0.00042995,120]
[402940401,1769000894326,-500.0,0.00042995,120]
[402940402,1769000894406,-500.0,0.00042995,120]
[402940403,1769000894487,-542.57,0.00042995,120]
[402940404,1769000894565,-501.84551036,0.00042995,120]
[402940405,1769000894638,-500.0,0.00042995,120]
[402940406,1769000894708,-500.0,0.00042995,120]
[402940407,1769000894780,-500.0,0.00042995,120]
[402940408,1769000894851,-641.10097803,0.00042995,120]
[402940409,1769000894925,-500.0,0.00042995,120]
[402940410,1769000895001,-500.0,0.00042995,120]
[402940411,1769000895078,-500.0,0.00042995,120]
[402940412,1769000895163,-500.0,0.00042995,120]
[402940413,1769000895250,-500.0,0.00042995,120]
[402940414,1769000895329,-500.0,0.00042995,120]
[402940415,1769000895402,-500.0,0.00042995,120]
[402940416,1769000895475,-500.0,0.00042995,120]
[402940417,1769000895548,-633.731261,0.00042995,120]
[402940418,1769000895621,-500.0,0.00042995,120]
[402940419,1769000895695,-500.0,0.00042995,120]
[402940420,1769000895764,-500.0,0.00042995,120]
[402940421,1769000895836,-620.18275932,0.00042995,120]
[402940422,1769000895907,-501.01244176,0.00042995,120]
[402940423,1769000895980,-500.0,0.00042995,120]
[402940424,1769000896057,-500.0,0.00042995,120]
[402940425,1769000896133,-500.0,0.00042995,120]
[402940426,1769000896205,-500.0,0.00042995,120]
[402940427,1769000896279,-500.0,0.00042995,120]
[402940428,1769000896352,-500.0,0.00042995,120]
[402940429,1769000896425,-500.0,0.00042995,120]
[402940430,1769000896505,-500.0,0.00042995,120]
[402940431,1769000896584,-500.0,0.00042995,120]
[402940432,1769000896657,-500.0,0.00042995,120]
[402940433,1769000896729,-500.0,0.00042995,120]
[402940434,1769000896802,-290.5679577,0.00042995,120]
[402940435,1769000896881,-506.32581049,0.00042995,120]
[402940436,1769000896952,-505.86838042,0.00042995,120]
[402940437,1769000897025,-512.55795275,0.00042995,120]
[402940438,1769000897098,-500.0,0.00042995,120]
[402940439,1769000897171,-632.49,0.00042995,120]
[402940440,1769000897244,-500.0,0.00042995,120]
[402940441,1769000897319,-500.0,0.00042995,120]
[402940442,1769000897391,-500.0,0.00042995,120]
[402940443,1769000897463,-500.0,0.00042995,120]
[402940444,1769000897535,-500.0,0.00042995,120]
[402940445,1769000897606,-508.34803557,0.00042995,120]
[402940446,1769000897680,-511.51,0.00042995,120]
[402940447,1769000897752,-500.0,0.00042995,120]
[402940448,1769000897823,-500.0,0.00042995,120]
[402940449,1769000897894,-500.0,0.00042995,120]
[402940450,1769000897967,-376.82,0.00042995,120]
[402940451,1769000898039,-500.0,0.00042995,120]
[402940452,1769000898112,-500.0,0.00042995,120]
[402940453,1769000898187,-503.19145,0.00042995,120]
[402940454,1769000898262,-500.0,0.00042995,120]
[402940455,1769000898336,-500.0,0.00042995,120]
[402940456,1769000898413,-504.0252797,0.00042995,120]
[402940457,1769000898488,-527.1,0.00042995,120]
[402940458,1769000898561,-500.0,0.00042995,120]
[402940459,1769000898636,-500.0,0.00042995,120]
[402940460,1769000898709,-500.0,0.00042995,120]
[402940461,1769000898784,-500.0,0.00042995,120]
[402940462,1769000898860,-502.75881087,0.00042995,120]
[402940463,1769000898937,-500.0,0.00042995,60]
[402940464,1769000899013,-500.0,0.00042995,120]
[402940465,1769000899088,-152.62117628,0.00042995,120]
[402940466,1769000899162,-572.62,0.00042995,120]
[402940467,1769000899238,-525.03108016,0.00042995,120]
[402940468,1769000899319,-500.0,0.00042995,120]
[402940469,1769000899397,-587.47,0.00042995,120]
[402940470,1769000899484,-500.0,0.00042995,120]
[402940471,1769000899560,-501.49018937,0.00042995,120]
[402940472,1769000899632,-580.31823228,0.00042995,120]
[402940473,1769000899700,-500.0,0.00042995,120]
[402940474,1769000899769,-500.0,0.00042995,120]
[402940475,1769000899838,-500.0,0.00042995,120]
[402940476,1769000899910,-400.74,0.00042995,120]
[402940477,1769000899983,-500.0,0.00042995,120]
[402940478,1769000900057,-500.0,0.00042995,120]
[402940479,1769000900129,-641.18,0.00042995,120]
[402940480,1769000900201,-500.0,0.00042995,120]
[402940481,1769000900274,-528.31860546,0.00042995,120]
[402940482,1769000900349,-500.0,0.00042995,120]
[402940483,1769000900422,-500.0,0.00042995,120]
[402940484,1769000900498,-500.0,0.00042995,120]
[402940485,1769000900570,-500.0,0.00042995,120]
[402940486,1769000900642,-500.0,0.00042995,120]
[402940487,1769000900714,-500.0,0.00042995,120]
[402940488,1769000900786,-500.0,0.00042995,120]
[402940489,1769000900854,-500.0,0.00042995,120]
[402940490,1769000900923,-500.0,0.00042995,120]
[402940491,1769000900998,-500.0,0.00042995,120]
[402940492,1769000901208,-500.0,0.00042995,120]
[402940493,1769000901287,-501.12431367,0.00042995,120]
[402940494,1769000901359,-535.93600415,0.00042995,120]
[402940495,1769000901432,-500.0,0.00042995,120]
[402940496,1769000901506,-500.0,0.00042995,120]
[402940497,1769000901582,-455.54,0.00042995,120]
[402940498,1769000901656,-500.0,0.00042995,120]
[402940499,1769000901729,-195.21,0.00042995,120]
[402940500,1769000901800,-538.98197314,0.00042995,120]
[402940501,1769000901870,-500.0,0.00042995,120]
[402940502,1769000901944,-500.0,0.00042995,120]
[402940503,1769000902018,-500.0,0.00042995,120]
[402940504,1769000902092,-503.25266682,0.00042995,120]
[402940505,1769000902164,-500.0,0.00042995,120]
[402940506,1769000902239,-500.0,0.00042995,120]
[402940507,1769000902311,-500.0,0.00042995,120]
[402940508,1769000902384,-278.39,0.00042995,120]
[402940509,1769000902458,-292.93819624,0.00042995,120]
[402940510,1769000902531,-534.7907874,0.00042995,120]
[402940511,1769000902600,-500.0,0.00042995,120]
[402940512,1769000902670,-602.02,0.00042995,120]
[402940513,1769000902742,-500.0,0.00042995,120]
[402940514,1769000902815,-500.0,0.00042995,120]
[402940515,1769000902883,-500.0,0.00042995,120]
[402940516,1769000902952,-500.0,0.00042995,120]
[402940517,1769000903029,-500.0,0.00042995,120]
[402940518,1769000903117,-496.42,0.00042995,120]
[402940519,1769000903193,-500.0,0.00042995,120]
[402940520,1769000903269,-500.0,0.00042995,120]
[402940521,1769000903343,-500.0,0.00042995,120]
[402940522,1769000903419,-471.92899412,0.00042995,120]
[402940523,1769000903497,-500.0,0.00042995,120]
[402940524,1769000903574,-501.69275603,0.00042995,120]
[402940525,1769000903648,-500.0,0.00042995,120]
[402940526,1769000903723,-506.00654661,0.00042995,120]
[402940527,1769000903797,-500.0,0.00042995,120]
[402940528,1769000903871,-500.0,0.00042995,120]
[402940529,1769000903944,-500.0,0.00042995,120]
[402940530,1769000904020,-505.51807658,0.00042995,120]
[402940531,1769000904110,-500.0,0.00042995,120]
[402940532,1769000904186,-500.0,0.00042995,120]
[402940533,1769000904264,-176.99,0.00042995,120]
[402940534,1769000904339,-533.1242605,0.00042995,120]
[402940535,1769000904411,-500.0,0.00042995,120]
[402940536,1769000904483,-500.0,0.00042995,120]
[402940537,1769000904556,-504.16080346,0.00042995,120]
[402940538,1769000904628,-500.0,0.00042995,120]
[402940539,1769000904699,-508.06061881,0.00042995,120]
[402940540,1769000904768,-500.0,0.00042995,120]
[402940541,1769000904841,-504.18124339,0.00042995,120]
[402940542,1769000904913,-500.0,0.00042995,120]
[402940543,1769000904988,-500.0,0.00042995,120]
[402940544,1769000905068,-507.85538696,0.00042995,120]
[402940545,1769000905144,-419.69,0.00042995,120]
[402940546,1769000905219,-500.0,0.00042995,120]
[402940547,1769000905293,-500.0,0.00042995,120]
[402940548,1769000905365,-433.58,0.00042995,120]
[402940549,1769000905439,-500.0,0.00042995,120]
[402940550,1769000905515,-500.0,0.00042995,120]
[402940551,1769000905590,-500.96754264,0.00042995,120]
[402940552,1769000905661,-500.0,0.00042995,120]
[402940553,1769000905733,-381.12,0.00042995,120]
[402940554,1769000905805,-500.0,0.00042995,120]
[402940555,1769000905879,-500.0,0.00042995,120]
[402940556,1769000905951,-500.0,0.00042995,120]
[402940557,1769000906025,-207.99,0.00042995,120]
[402940558,1769000906098,-500.0,0.00042995,120]
[402940559,1769000906171,-500.0,0.00042995,120]
[402940560,1769000906247,-500.0,0.00042995,120]
[402940561,1769000906319,-500.0,0.00042995,120]
[402940562,1769000906394,-500.0,0.00042995,120]
[402940563,1769000906469,-279.06,0.00042995,120]
[402940564,1769000906542,-500.0,0.00042995,120]
[402940565,1769000906614,-500.0,0.00042995,120]
[402940566,1769000906685,-500.0,0.00042995,120]
[402940567,1769000906756,-500.0,0.00042995,120]
[402940568,1769000906827,-196.15,0.00042995,120]
[402940569,1769000906899,-274.97,0.00042995,120]
[402940570,1769000906971,-500.0,0.00042995,120]
[402940571,1769000907044,-500.0,0.00042995,120]
[402940572,1769000907115,-500.0,0.00042995,120]
[402940573,1769000907187,-500.0,0.00042995,120]
[402940574,1769000907263,-500.0,0.00042995,120]
[402940575,1769000907337,-500.0,0.00042995,120]
[402940576,1769000907410,-399.88,0.00042995,120]
[402940577,1769000907488,-500.0,0.00042995,120]
[402940578,1769000907562,-511.85697384,0.00042995,120]
[402940579,1769000907637,-500.0,0.00042995,120]
[402940580,1769000907708,-500.0,0.00042995,120]
[402940581,1769000907783,-500.0,0.00042995,120]
[402940582,1769000907855,-500.0,0.00042995,120]
[402940583,1769000907925,-500.0,0.00042995,120]
[402940584,1769000907992,-500.0,0.00042995,120]
[402940585,1769000908063,-500.0,0.00042995,120]
[402940586,1769000908133,-500.0,0.00042995,120]
[402940587,1769000908380,-310.15,0.00042995,120]
[402940588,1769000908454,-500.0,0.00042995,120]
[402940589,1769000908526,-557.34871748,0.00042995,120]
[402940590,1769000908595,-500.0,0.00042995,120]
[402940591,1769000908664,-500.0,0.00042995,120]
[402940592,1769000908732,-500.0,0.00042995,120]
[402940593,1769000908798,-500.0,0.00042995,120]
[402940594,1769000908872,-500.0,0.00042995,120]
[402940595,1769000908946,-551.53159022,0.00042995,120]
[402940596,1769000909019,-500.0,0.00042995,120]
[402940597,1769000909092,-500.0,0.00042995,120]
[402940598,1769000909164,-500.0,0.00042995,120]
[402940599,1769000909234,-500.0,0.00042995,120]
[402940600,1769000909304,-500.0,0.00042995,120]
[402940601,1769000909375,-500.0,0.00042995,120]
[402940602,1769000909447,-500.0,0.00042995,120]
[402940603,1769000909517,-500.0,0.00042995,120]
[402940604,1769000909586,-500.0,0.00042995,120]
[402940605,1769000909651,-552.58,0.00042995,120]
[402940606,1769000909715,-500.0,0.00042995,120]
[402940607,1769000909780,-500.0,0.00042995,120]
[402940608,1769000909845,-592.94,0.00042995,120]
[402940609,1769000909915,-514.48696637,0.00042995,120]
[402940610,1769000909984,-500.0,0.00042995,120]
[402940611,1769000910053,-500.0,0.00042995,120]
[402940612,1769000910122,-500.0,0.00042995,120]
[402940613,1769000910194,-500.0,0.00042995,120]
[402940614,1769000910263,-500.0,0.00042995,120]
[402940615,1769000910332,-500.0,0.00042995,120]
[402940616,1769000910404,-500.0,0.00042995,120]
[402940617,1769000910478,-500.0,0.00042995,120]
[402940618,1769000910549,-500.0,0.00042995,120]
[402940619,1769000910619,-500.0,0.00042995,120]
[402940620,1769000910688,-500.0,0.00042995,120]
[402940621,1769000910757,-500.0,0.00042995,120]
[402940622,1769000910824,-500.0,0.00042995,120]
[402940623,1769000910890,-500.0,0.00042995,120]
[402940624,1769000910958,-500.0,0.00042995,120]
[402940625,1769000911030,-373.63,0.00042995,120]
[402940626,1769000911103,-500.0,0.00042995,120]
[402940627,1769000911177,-500.0,0.00042995,120]
[402940628,1769000911250,-500.0,0.00042995,120]
[402940629,1769000911321,-500.0,0.00042995,120]
[402940630,1769000911392,-520.94721019,0.00042995,120]
[402940631,1769000911465,-632.73,0.00042995,120]
[402940632,1769000911536,-501.38925125,0.00042995,120]
[402940633,1769000911606,-500.0,0.00042995,120]
[402940634,1769000911679,-538.40790097,0.00042995,120]
[402940635,1769000911748,-500.0,0.00042995,120]
[402940636,1769000911817,-502.59913298,0.00042995,120]
[402940637,1769000911888,-602.51344638,0.00042995,120]
[402940638,1769000911957,-529.61,0.00042995,120]
[402940639,1769000912030,-500.0,0.00042995,120]
[402940640,1769000912098,-500.0,0.00042995,120]
[402940641,1769000912169,-500.0,0.00042995,120]
[402940642,1769000912248,-527.71532769,0.00042995,120]
[402940643,1769000912321,-500.0,0.00042995,120]
[402940644,1769000912392,-500.0,0.00042995,120]
[402940645,1769000912464,-500.0,0.00042995,120]
[402940646,1769000912534,-517.87037823,0.00042995,120]
[402940647,1769000912605,-576.75,0.00042995,120]
[402940648,1769000912676,-545.31,0.00042995,120]
[402940649,1769000912745,-501.37237991,0.00042995,120]
[402940650,1769000912817,-500.0,0.00042995,120]
[402940651,1769000912887,-500.0,0.00042995,120]
[402940652,1769000912960,-500.0,0.00042995,120]
[402940653,1769000913034,-366.83,0.00042995,120]
[402940654,1769000913108,-500.0,0.00042995,120]
[402940655,1769000913182,-500.0,0.00042995,120]
[402940656,1769000913256,-555.89,0.00042995,120]
[402940657,1769000913333,-500.0,0.00042995,120]
[402940658,1769000913413,-500.0,0.00042995,120]
[402940659,1769000913487,-506.37040701,0.00042995,120]
[402940660,1769000913562,-500.0,0.00042995,120]
[402940661,1769000913636,-500.0,0.00042995,120]
[402940662,1769000913706,-500.0,0.00042995,120]
[402940663,1769000913778,-500.0,0.00042995,120]
[402940664,1769000913849,-500.0,0.00042995,120]
[402940665,1769000913920,-539.76,0.00042995,120]
[402940666,1769000913993,-500.0,0.00042995,120]
[402940667,1769000914066,-500.0,0.00042995,120]
[402940668,1769000914141,-525.48192745,0.00042995,120]
[402940669,1769000914215,-500.0,0.00042995,120]
[402940670,1769000914290,-500.0,0.00042995,120]
[402940671,1769000914363,-500.0,0.00042995,120]
[402940672,1769000914436,-524.74012155,0.00042995,120]
[402940673,1769000914509,-500.0,0.00042995,120]
[402940674,1769000914581,-500.0,0.00042995,120]
[402940675,1769000914649,-541.03121406,0.00042995,120]
[402940676,1769000914721,-234.92,0.00042995,120]
[402940677,1769000914792,-500.0,0.00042995,120]
[402940678,1769000915385,500.0,0.00042995,120]
[402940679,1769000915478,500.0,0.00042995,120]
[402940680,1769000915555,26457.30844058,0.00042995,30]
[402940681,1769000915690,-151.59,0.00019178,30]
[402940682,1769000915765,-1000.0,0.00023,30]
[402940683,1769000915833,-181.53,0.00024417,30]
[402940684,1769000915907,-150.00168631,0.0002559,32]
[402940685,1769000915995,-771.62,0.00026394,120]
[402940686,1769000916071,-150.00168631,0.00026841,37]
[402940687,1769000916147,-1000.0,0.00027,30]
[402940688,1769000916223,-151.59,0.00027895,30]
[402940689,1769000916298,-150.00168631,0.00028093,41]
[402940690,1769000916386,-150.00168631,0.00029345,46]
[402940691,1769000916457,-1808.7624,0.0003,120]
[402940692,1769000916528,-150.00168631,0.00030597,50]
[402940693,1769000916603,-150.00168631,0.00031849,55]
[402940694,1769000916674,-502.98231063,0.00032876,30]
[402940695,1769000916744,-150.00168631,0.00033101,59]
[402940696,1769000916814,-500.0,0.00033939,60]
[402940697,1769000916888,-150.00168652,0.00034353,63]
[402940698,1769000916959,-1000.0,0.00035,60]
[402940699,1769000917028,-363.6,0.00035589,30]
[402940700,1769000917100,-163.20316981,0.00035604,68]
[402940701,1769000917170,-371.12351035,0.00035616,120]
[402940702,1769000917240,-151.59,0.00036613,120]
[402940703,1769000917312,-163.20316981,0.00036856,72]
[402940704,1769000917383,-10618.28303661,0.000381,33]
[402940705,1769000917454,-163.20316981,0.00038108,78]
[402940706,1769000917525,-709.67,0.000383,30]
[402940707,1769000917593,-500.0,0.00038356,60]
[402940708,1769000917659,-500.0,0.00038411,60]
[402940709,1769000917728,-500.0,0.00038466,60]
[402940710,1769000917795,-500.0,0.0003852,60]
[402940711,1769000917864,-500.0,0.00038575,60]
[402940712,1769000917933,-500.0,0.0003863,60]
[402940713,1769000918005,-568.11992214,0.00038685,60]
[402940714,1769000918113,-781.418,0.00038888,30]
[402940715,1769000918187,-763.46561356,0.00039,90]
[402940716,1769000918261,-163.20316981,0.0003936,86]
[402940717,1769000918336,-2274.989,0.00039752,55]
[402940718,1769000918407,-226.442,0.00039752,55]
[402940719,1769000918484,-1001.2,0.0004,120]
[402940720,1769000918558,-3000.0,0.0004,30]
[402940721,1769000918631,-163.20316981,0.00040612,94]
[402940722,1769000918704,-606.0,0.00041068,120]
[402940723,1769000918774,-151.0,0.00041095,60]
[402940724,1769000918850,-797.0,0.00041096,120]
[402940725,1769000918924,-151.0,0.00041369,60]
[402940726,1769000918998,-797.0,0.0004137,120]
[402940727,1769000919078,-2896.58787434,0.000415,30]
[402940728,1769000919154,-151.0,0.00041643,60]
[402940729,1769000919228,-797.0,0.00041644,120]
[402940730,1769000919301,-10245.0,0.000417,117]
[402940731,1769000919376,-163.20316981,0.00041864,102]
[402940732,1769000919450,-1806.70377165,0.000419,120]
[402940733,1769000919523,-1806.70377156,0.000419,120]
[402940734,1769000919593,-1806.70377156,0.000419,120]
[402940735,1769000919662,-1806.70377156,0.000419,120]
[402940736,1769000919730,-1806.70377156,0.000419,120]
[402940737,1769000919798,-1806.70377156,0.000419,120]
[402940738,1769000919866,-1806.70377156,0.000419,120]
[402940739,1769000919936,-1806.70377156,0.000419,120]
[402940740,1769000920007,-1806.70377156,0.000419,120]
[402940741,1769000920076,-1806.70377156,0.000419,120]
[402940742,1769000920147,-1806.70377156,0.000419,120]
[402940743,1769000920218,-1806.70377156,0.000419,120]
[402940744,1769000920289,-1806.70377156,0.000419,120]
[402940745,1769000920357,-1806.70377156,0.000419,120]
[402940746,1769000920426,-1806.70377156,0.000419,120]
[402940747,1769000920496,-1806.70377156,0.000419,120]
[402940748,1769000920565,-1806.70377156,0.000419,120]
[402940749,1769000920635,-1806.70377156,0.000419,120]
[402940750,1769000920708,-1806.70377156,0.000419,120]
[402940751,1769000920784,-1806.70377156,0.000419,120]
[402940752,1769000920855,-151.0,0.00041917,60]
[402940753,1769000920926,-797.0,0.00041918,120]
[402940754,1769000920998,-5044.0,0.00042,120]
[402940755,1769000921072,-3000.0,0.00042,30]
[402940756,1769000921145,-151.0,0.00042191,60]
[402940757,1769000921223,-797.0,0.00042192,120]
[402940758,1769000921297,-748.01,0.000424,30]
[402940759,1769000921531,-50128.01126226,0.000424,120]
[402940760,1769000921602,-151.0,0.00042465,60]
[402940761,1769000921674,-797.0,0.00042466,120]
[402940762,1769000921746,-151.0,0.00042739,60]
[402940763,1769000921816,-797.0,0.0004274,120]
[402940764,1769000921887,-287.46596901,0.00042895,120]
[402940765,1769000921957,-151.0,0.00042897,120]
[402940766,1769000922026,-244.6,0.00042904,90]
[402940767,1769000922098,-151.0,0.00042992,120]
[402940768,1769000922172,-300.0,0.00042994,30]
[402940769,1769000922241,-300.0,0.00042994,30]
[402940770,1769000922311,-1660.11420491,0.00042995,31]
[402940771,1769000922396,-151.0,0.00042995,120]
[402940772,1769000922467,-151.0,0.00042995,120]
[402940773,1769000922538,-151.0,0.00042995,120]
[402940774,1769000922610,-151.0,0.00042995,120]
[402940775,1769000922680,-151.0,0.00042995,120]
[402940776,1769000922748,-151.0,0.00042995,120]
[402940777,1769000922818,-172.175422,0.00042995,120]
[402940778,1769000922887,-151.0,0.00042995,120]
[402940779,1769000922958,-199.0,0.00042995,120]
[402940780,1769000923028,-266.819436,0.00042995,30]
[402940781,1769000923100,-266.819436,0.00042995,30]
[402940782,1769000923172,-266.819436,0.00042995,30]
[402940783,1769000923248,-266.819436,0.00042995,30]
[402940784,1769000923326,-266.819436,0.00042995,30]
[402940785,1769000923407,-266.819436,0.00042995,30]
[402940786,1769000923500,-266.819436,0.00042995,30]
[402940787,1769000923582,-266.819436,0.00042995,30]
[402940788,1769000923658,-266.819436,0.00042995,30]
[402940789,1769000923742,-266.819436,0.00042995,30]
[402940790,1769000923821,-266.819436,0.00042995,30]
[402940791,1769000923911,-266.819436,0.00042995,30]
[402940792,1769000923991,-266.819436,0.00042995,30]
[402940793,1769000924066,-266.819436,0.00042995,30]
[402940794,1769000924143,-266.819436,0.00042995,30]
[402940795,1769000924219,-266.819436,0.00042995,30]
[402940796,1769000924294,-266.819436,0.00042995,30]
[402940797,1769000924368,-266.819436,0.00042995,30]
[402940798,1769000924442,-266.819436,0.00042995,30]
[402940799,1769000924515,-266.819435,0.00042995,30]
[402940800,1769000924586,-162.41,0.00043,120]
[402940801,1769000924661,-7274.63550002,0.00043,120]
[402940802,1769000924734,-748.01,0.00043,30]
[402940803,1769000924808,-151.0,0.00043013,60]
[402940804,1769000924886,-797.0,0.00043014,120]
[402940805,1769000924963,-300.0,0.00043018,30]
[402940806,1769000925037,-300.0,0.00043059,30]
[402940807,1769000925112,-666.0,0.00043059,30]
[402940808,1769000925191,-300.0,0.00043059,30]
[402940809,1769000925270,-152.533101,0.0004306,120]
[402940810,1769000925347,-151.0,0.0004306,60]
[402940811,1769000925422,-151.0,0.0004306,120]
[402940812,1769000925503,-300.0,0.00043068,120]
[402940813,1769000925580,-163.20316981,0.00043116,111]
[402940814,1769000925659,-300.0,0.00043149,30]